bitfinex-derivatives/quotes_BTCF0:USTF0_20250125
["timestamp","ask_amount","ask_price","bid_price","bid_amount"]
[1737839479091,0.47562271,104930.0,104920.0,0.33132174]
[1737839479392,0.11482271,104930.0,104920.0,0.33332174]
[1737839482686,0.00114269,104930.0,104920.0,0.5048236]
[1737839487581,0.00114269,104930.0,104920.0,0.33332174]
[1737839487784,0.00114269,104930.0,104920.0,0.39051561]
[1737839487985,0.00114269,104930.0,104920.0,0.33332174]
[1737839492191,0.00114269,104930.0,104920.0,0.5048236]
[1737839496200,0.00114269,104930.0,104920.0,0.73355653]
[1737839504201,0.00114269,104930.0,104920.0,0.56205467]
[1737839505301,0.00114269,104930.0,104920.0,0.60377341]
[1737839507999,0.00114269,104930.0,104920.0,0.81749403]
[1737839508205,0.00114269,104930.0,104920.0,1.21434199]
[1737839511008,0.00114269,104930.0,104920.0,1.28314199]
[1737839512401,0.00114269,104930.0,104920.0,0.94233099]
[1737839512797,0.00114269,104930.0,104920.0,0.75193712]
[1737839513002,0.36194269,104930.0,104920.0,0.75193712]
[1737839513203,0.36194269,104930.0,104920.0,0.80913099]
[1737839517109,0.36194269,104930.0,104920.0,0.49762693]
[1737839518717,0.00114269,104930.0,104920.0,0.49762693]
[1737839521014,0.36194269,104930.0,104920.0,0.49762693]
[1737839524216,0.36194269,104930.0,104920.0,0.53933897]
[1737839525511,0.36194269,104930.0,104920.0,0.71078946]
[1737839530715,0.36194269,104930.0,104920.0,0.66907742]
[1737839533814,0.36194269,104930.0,104920.0,0.73527742]
[1737839535622,0.51446269,104930.0,104920.0,0.73527742]
[1737839538627,0.62843947,104930.0,104920.0,0.73527742]
[1737839542245,0.62843947,104930.0,104920.0,0.67808355]
[1737839542540,0.62843947,104930.0,104920.0,0.73527742]
[1737839546034,0.62843947,104930.0,104920.0,0.67808355]
[1737839546842,0.62843947,104930.0,104920.0,0.73527742]
[1737839547043,0.62843947,104930.0,104920.0,0.67808355]
[1737839548134,0.77068962,104930.0,104920.0,0.67808355]
[1737839551447,0.62843947,104930.0,104920.0,0.67808355]
[1737839561754,0.77068962,104930.0,104920.0,0.67808355]
[1737839563355,0.77068962,104930.0,104920.0,0.61188355]
[1737839563550,0.77068962,104930.0,104920.0,0.55468968]
[1737839563847,0.86358962,104930.0,104920.0,0.55468968]
[1737839564448,0.86358962,104930.0,104920.0,0.61188355]
[1737839567349,0.74961284,104930.0,104920.0,0.61188355]
[1737839571557,0.92052184,104930.0,104920.0,0.38317836]
[1737839573057,0.82762184,104930.0,104920.0,0.38317836]
[1737839573262,0.82762184,104930.0,104920.0,0.44037223]
[1737839574061,0.65671284,104930.0,104920.0,0.44037223]
[1737839575168,0.65671284,104930.0,104920.0,0.38317836]
[1737839577562,0.7706983,104930.0,104920.0,0.38317836]
[1737839581768,0.7706983,104930.0,104920.0,0.44037223]
[1737839581965,0.6181783,104930.0,104920.0,0.44037223]
[1737839582974,0.25623561,104930.0,104920.0,0.8583661]
[1737839583174,0.170909,104940.0,104930.0,0.15252]
[1737839583366,0.170909,104940.0,104930.0,0.36280774]
[1737839583863,0.170909,104940.0,104930.0,0.43144774]
[1737839584465,0.170909,104940.0,104930.0,0.43244774]
[1737839584866,0.170909,104940.0,104930.0,0.83495264]
[1737839585560,0.19842603,104950.0,104930.0,0.83495264]
[1737839585561,0.19842603,104950.0,104930.0,0.61379264]
[1737839585767,0.19842603,104950.0,104940.0,0.26689274]
[1737839585967,0.00014269,104950.0,104940.0,0.26689274]
[1737839586874,0.00014269,104950.0,104940.0,0.26789274]
[1737839587175,0.00014269,104950.0,104940.0,0.33657274]
[1737839587176,0.00114269,104950.0,104940.0,0.33657274]
[1737839587769,0.00014269,104950.0,104940.0,0.33657274]
[1737839587970,0.00114269,104950.0,104940.0,0.33657274]
[1737839589375,0.00114269,104950.0,104940.0,0.39376661]
[1737839590063,0.00114269,104950.0,104940.0,0.7363694]
[1737839590266,0.00114269,104950.0,104940.0,0.79356327]
[1737839592170,0.00114269,104950.0,104940.0,0.7363694]
[1737839592878,0.00114269,104950.0,104940.0,1.15436327]
[1737839594970,0.3608,104960.0,104950.0,0.152491]
[1737839595171,0.3608,104960.0,104950.0,0.36247874]
[1737839596578,0.3628,104960.0,104950.0,0.36247874]
[1737839597373,0.3648,104960.0,104950.0,0.36247874]
[1737839597573,0.3648,104960.0,104950.0,0.30528487]
[1737839597773,0.3648,104960.0,104950.0,0.36247874]
[1737839598584,0.3648,104960.0,104950.0,0.30528487]
[1737839599078,0.3648,104960.0,104950.0,0.36247874]
[1737839600973,0.004,104960.0,104950.0,0.36247874]
[1737839606488,0.004,104960.0,104950.0,0.37191052]
[1737839608680,0.004,104960.0,104950.0,0.54300199]
[1737839612981,0.004,104960.0,104950.0,0.60061571]
[1737839618190,0.004,104960.0,104950.0,0.92498453]
[1737839621186,0.004,104960.0,104950.0,0.96668678]
[1737839621995,0.004,104960.0,104950.0,0.92498453]
[1737839630715,0.004,104960.0,104950.0,0.86779066]
[1737839631410,0.004,104960.0,104950.0,0.95021036]
[1737839631607,0.004,104960.0,104950.0,0.90851306]
[1737839631810,0.004,104960.0,104950.0,0.86779066]
[1737839632512,0.004,104960.0,104950.0,0.90851635]
[1737839636517,0.08915652,104960.0,104950.0,0.96455746]
[1737839636713,0.08915652,104960.0,104950.0,1.26915241]
[1737839640722,0.08915652,104960.0,104950.0,1.31046296]
[1737839640922,0.08915652,104960.0,104950.0,1.35216029]
[1737839652233,0.08915652,104960.0,104950.0,1.31084974]
[1737839653332,0.08915652,104960.0,104950.0,1.35213891]
[1737839655032,0.65962639,104960.0,104950.0,0.96483918]
[1737839655237,0.80922026,104960.0,104950.0,0.91371007]
[1737839655632,0.75202639,104960.0,104950.0,0.91371007]
[1737839659137,0.152491,104950.0,104940.0,0.61886245]
[1737839659340,0.513291,104950.0,104940.0,0.61886245]
[1737839661330,0.514291,104950.0,104940.0,0.61886245]
[1737839662638,0.514291,104950.0,104940.0,0.39136768]
[1737839662639,0.59963881,104950.0,104940.0,0.39136768]
[1737839666042,0.514291,104950.0,104940.0,0.39136768]
[1737839673946,0.57148487,104950.0,104940.0,0.39136768]
[1737839674139,0.514291,104950.0,104940.0,0.39136768]
[1737839674948,0.514291,104950.0,104940.0,0.21999661]
[1737839675939,0.57148487,104950.0,104940.0,0.16280274]
[1737839677945,0.57148487,104950.0,104940.0,0.33417381]
[1737839682153,0.65683268,104950.0,104940.0,0.33417381]
[1737839683354,0.59963881,104950.0,104940.0,0.33417381]
[1737839684755,0.59963881,104950.0,104940.0,0.39136768]
[1737839684957,0.65683268,104950.0,104940.0,0.33417381]
[1737839685158,0.59963881,104950.0,104940.0,0.39136768]
[1737839685655,0.59963881,104950.0,104940.0,0.33417381]
[1737839685859,0.62808808,104950.0,104940.0,0.39129751]
[1737839687759,0.68528195,104950.0,104940.0,0.39129751]
[1737839689657,0.68528195,104950.0,104940.0,0.23879351]
[1737839690954,0.62808808,104950.0,104940.0,0.29598738]
[1737839693755,0.62808808,104950.0,104940.0,0.84748758]
[1737839697066,0.26728808,104950.0,104940.0,0.84748758]
[1737839697363,0.62808808,104950.0,104940.0,0.84748758]
[1737839698768,0.77046686,104950.0,104940.0,0.29598738]
[1737839699467,0.77046686,104950.0,104940.0,0.44849238]
[1737839711576,0.77046686,104950.0,104940.0,0.23879351]
[1737839711978,0.77046686,104950.0,104940.0,0.29598738]
[1737839713177,0.62808808,104950.0,104940.0,0.29598738]
[1737839719882,0.62808808,104950.0,104940.0,0.50568625]
[1737839720179,0.11479708,104950.0,104940.0,0.56288012]
[1737839720384,0.11479708,104950.0,104940.0,0.92368012]
[1737839720679,0.11479708,104950.0,104940.0,0.9644124]
[1737839721084,0.11479708,104950.0,104940.0,0.94892201]
[1737839723184,0.001,104950.0,104940.0,1.32935426]
[1737839725380,0.001,104950.0,104940.0,1.34581585]
[1737839725588,0.56003154,104960.0,104950.0,0.152491]
[1737839725883,0.56003154,104960.0,104950.0,0.36277874]
[1737839726676,0.19923154,104960.0,104950.0,0.36277874]
[1737839726881,0.20123154,104960.0,104950.0,0.36277874]
[1737839727177,0.20123154,104960.0,104950.0,0.43125874]
[1737839727384,0.20323154,104960.0,104950.0,0.43125874]
[1737839728382,0.08943446,104960.0,104950.0,0.43125874]
[1737839729280,0.08943446,104960.0,104950.0,0.79205874]
[1737839730978,0.25631855,104970.0,104960.0,0.152476]
[1737839731185,0.25631855,104970.0,104960.0,0.26686374]
[1737839732287,0.25931855,104970.0,104960.0,0.26686374]
[1737839732485,0.00314269,104970.0,104960.0,0.26686374]
[1737839732889,0.00814269,104970.0,104960.0,0.26686374]
[1737839735781,0.00814269,104970.0,104960.0,0.66604461]
[1737839744798,0.00814269,104970.0,104960.0,0.67563149]
[1737839749812,0.00814269,104970.0,104960.0,0.50462701]
[1737839750500,0.57859856,104970.0,104960.0,0.23776327]
[1737839750803,0.67349856,104970.0,104960.0,0.23776327]
[1737839751000,0.67349856,104970.0,104960.0,0.29495714]
[1737839751406,0.67349856,104970.0,104960.0,0.23776327]
[1737839753709,0.78729564,104970.0,104960.0,0.00958688]
[1737839753906,0.63483364,104970.0,104950.0,0.60909738]
[1737839754109,0.513276,104960.0,104950.0,0.60909738]
[1737839754404,0.513276,104960.0,104950.0,0.61876651]
[1737839756301,0.515276,104960.0,104950.0,0.61876651]
[1737839756501,0.516276,104960.0,104950.0,0.61876651]
[1737839762708,0.516276,104960.0,104950.0,0.46627951]
[1737839762902,0.63066374,104960.0,104950.0,0.39941651]
[1737839765715,0.152491,104950.0,104940.0,0.05733656]
[1737839765916,0.513291,104950.0,104940.0,0.05733656]
[1737839766811,0.60138487,104950.0,104940.0,0.00014269]
[1737839767010,0.60138487,104950.0,104940.0,0.05733656]
[1737839767204,0.60138487,104950.0,104940.0,0.05833656]
[1737839768115,0.63148487,104950.0,104940.0,0.05833656]
[1737839769010,0.63148487,104950.0,104940.0,0.00114269]
[1737839769723,0.63148487,104950.0,104940.0,0.05833656]
[1737839771118,0.574291,104950.0,104940.0,0.05833656]
[1737839771321,0.66198487,104950.0,104940.0,0.00114269]
[1737839776112,0.67148236,104950.0,104940.0,0.00114269]
[1737839780027,0.55288849,104950.0,104940.0,0.05833656]
[1737839780524,0.62708808,104950.0,104940.0,0.05833656]
[1737839784821,0.513291,104950.0,104940.0,0.05833656]
[1737839788531,0.62708808,104950.0,104940.0,0.05833656]
[1737839792533,0.62708808,104950.0,104940.0,0.22957668]
[1737839796138,0.76946686,104950.0,104940.0,0.45775307]
[1737839797438,0.76946686,104950.0,104940.0,0.4005592]
[1737839797645,0.76946686,104950.0,104940.0,0.45775307]
[1737839801328,0.76946686,104950.0,104940.0,0.4005592]
[1737839801643,1.05526686,104950.0,104940.0,0.4005592]
[1737839801834,1.05526686,104950.0,104940.0,0.45775307]
[1737839805141,1.05526686,104950.0,104940.0,0.4005592]
[1737839805843,0.91288808,104950.0,104940.0,0.17238281]
[1737839808943,1.05526686,104950.0,104940.0,0.4005592]
[1737839811549,1.11246073,104950.0,104940.0,0.40041651]
[1737839811847,0.152505,104940.0,104930.0,0.2854683]
[1737839812148,0.57049887,104940.0,104930.0,0.2854683]
[1737839813553,0.57149887,104940.0,104930.0,0.2874683]
[1737839813740,0.57149887,104940.0,104930.0,0.6282793]
[1737839813940,0.57149887,104940.0,104930.0,0.6292793]
[1737839815742,0.62869274,104940.0,104930.0,0.6292793]
[1737839818149,0.77107152,104940.0,104930.0,0.003]
[1737839818741,0.78073393,104940.0,104930.0,0.003]
[1737839828757,0.77107152,104940.0,104930.0,0.003]
[1737839828959,0.65668378,104940.0,104930.0,0.06019387]
[1737839829258,0.65668378,104940.0,104930.0,0.21271387]
[1737839829650,0.65668378,104940.0,104930.0,0.26990774]
[1737839829853,0.50417878,104940.0,104930.0,0.21271387]
[1737839832364,0.3618,104940.0,104930.0,0.21271387]
[1737839833156,0.514305,104940.0,104930.0,0.22211915]
[1737839833468,0.57149887,104940.0,104930.0,0.22211915]
[1737839834272,0.514305,104940.0,104930.0,0.22211915]
[1737839835573,0.57149887,104940.0,104930.0,0.16492528]
[1737839836870,0.514305,104940.0,104930.0,0.16492528]
[1737839838469,0.514305,104940.0,104930.0,0.22211915]
[1737839839571,0.62791768,104940.0,104930.0,0.22211915]
[1737839853877,0.71317506,104940.0,104930.0,0.22211915]
[1737839857184,0.62791768,104940.0,104930.0,0.06959915]
[1737839857483,0.62791768,104940.0,104930.0,0.22210415]
[1737839859179,0.47541268,104940.0,104930.0,0.22210415]
[1737839860076,0.11461268,104940.0,104930.0,0.22210415]
[1737839860780,0.11461268,104940.0,104930.0,0.26381092]
[1737839863872,0.11461268,104940.0,104930.0,0.32100479]
[1737839864185,0.11461268,104940.0,104930.0,0.26381092]
[1737839864577,0.001,104940.0,104930.0,0.81676356]
[1737839864779,0.001,104940.0,104930.0,0.87395743]
[1737839866078,0.001,104940.0,104930.0,0.81676356]
[1737839866276,0.001,104940.0,104930.0,0.87395743]
[1737839866476,0.001,104940.0,104930.0,0.81676356]
[1737839867184,0.001,104940.0,104930.0,0.87395743]
[1737839868086,0.001,104940.0,104930.0,1.21476843]
[1737839868684,0.001,104940.0,104930.0,1.15757456]
[1737839868878,0.001,104940.0,104930.0,1.11586779]
[1737839869272,0.37129279,104950.0,104930.0,1.38135666]
[1737839869476,0.37129279,104950.0,104940.0,0.36347774]
[1737839870690,0.37129279,104950.0,104940.0,0.36447774]
[1737839872183,0.28594269,104950.0,104940.0,0.36447774]
[1737839876291,0.28594269,104950.0,104940.0,0.59270533]
[1737839878602,0.64674269,104950.0,104940.0,0.59270533]
[1737839887601,0.64674269,104950.0,104940.0,0.87817363]
[1737839888795,0.64674269,104950.0,104940.0,0.91987675]
[1737839891202,0.64674269,104950.0,104940.0,0.95693576]
[1737839892298,0.79921869,104950.0,104940.0,0.74594802]
[1737839892506,0.86031869,104950.0,104940.0,0.80314189]
[1737839892810,0.89311869,104950.0,104940.0,0.80314189]
[1737839893300,0.89311869,104950.0,104940.0,0.76143877]
[1737839895303,0.97846879,104950.0,104940.0,0.76143877]
[1737839899309,1.09208147,104950.0,104940.0,0.99005879]
[1737839903205,0.99818147,104950.0,104940.0,1.04725266]
[1737839903409,0.99818147,104950.0,104940.0,1.14545266]
[1737839905214,0.48490547,104950.0,104940.0,1.14545266]
[1737839906407,0.37129279,104950.0,104940.0,1.14545266]
[1737839911012,0.28594269,104950.0,104940.0,0.91683264]
[1737839920721,0.28594269,104950.0,104940.0,1.27763264]
[1737839922122,0.28594269,104950.0,104940.0,1.31834749]
[1737839922823,0.28594269,104950.0,104940.0,1.36004713]
[1737839923019,0.28594269,104950.0,104940.0,1.40174703]
[1737839923717,0.28594269,104950.0,104940.0,1.74255803]
[1737839925623,0.28594269,104950.0,104940.0,1.66014328]
[1737839926020,0.28594269,104950.0,104940.0,1.61844364]
[1737839927219,0.28594269,104950.0,104940.0,1.25764364]
[1737839927723,0.28594269,104950.0,104940.0,1.28841258]
[1737839931728,0.28594269,104950.0,104940.0,0.63136434]
[1737839934130,0.23594269,104950.0,104940.0,0.69984434]
[1737839934427,0.18594269,104950.0,104940.0,0.69984434]
[1737839934728,0.18594269,104950.0,104940.0,1.06064434]
[1737839934928,0.0853501,104960.0,104950.0,0.152476]
[1737839935138,0.0853501,104960.0,104950.0,0.26686374]
[1737839935730,0.19896278,104960.0,104950.0,0.26686374]
[1737839936927,0.20096278,104960.0,104950.0,0.26686374]
[1737839937731,0.20196278,104960.0,104950.0,0.26686374]
[1737839940438,0.003,104960.0,104950.0,0.81791005]
[1737839941539,0.003,104960.0,104950.0,0.869275]
[1737839944242,0.003,104960.0,104950.0,0.85377961]
[1737839944638,0.003,104960.0,104950.0,1.19459061]
[1737839945035,0.003,104960.0,104950.0,1.15289213]
[1737839946547,0.003,104960.0,104950.0,1.19458966]
[1737839946843,0.003,104960.0,104950.0,1.15289213]
[1737839947946,0.003,104960.0,104950.0,1.19459029]
[1737839948245,0.003,104960.0,104950.0,1.210086]
[1737839949046,0.003,104960.0,104950.0,1.25178409]
[1737839949645,0.003,104960.0,104950.0,1.61258409]
[1737839949845,0.003,104960.0,104950.0,1.65328879]
[1737839950858,0.19910547,104970.0,104960.0,0.26684874]
[1737839951053,0.19910547,104970.0,104960.0,0.72164874]
[1737839951961,0.20410547,104970.0,104960.0,0.72164874]
[1737839953854,0.20610547,104970.0,104960.0,0.72164874]
[1737839955255,0.00714269,104970.0,104960.0,1.27269505]
[1737839957464,0.00714269,104970.0,104960.0,1.31438635]
[1737839957648,0.00714269,104970.0,104960.0,1.35503496]
[1737839958261,0.00714269,104970.0,104960.0,1.39672403]
[1737839959154,0.00714269,104970.0,104960.0,1.46520403]
[1737839959357,0.00714269,104970.0,104960.0,1.42455542]
[1737839959559,0.00714269,104970.0,104960.0,1.46519268]
[1737839959761,0.74671715,104990.0,104960.0,1.36992555]
[1737839959958,0.74671715,104990.0,104980.0,0.26681974]
[1737839960160,0.71361715,104990.0,104980.0,0.26681974]
[1737839960965,0.71661715,104990.0,104980.0,0.26681974]
[1737839961769,0.71561715,104990.0,104980.0,0.26681974]
[1737839961978,0.57019215,104990.0,104980.0,0.26781974]
[1737839962269,0.45657947,104990.0,104980.0,0.26781974]
[1737839962470,0.44957947,104990.0,104980.0,0.36151974]
[1737839962662,0.45357947,104990.0,104980.0,0.36151974]
[1737839965374,0.45357947,104990.0,104980.0,0.37097886]
[1737839966264,0.36822937,104990.0,104980.0,0.77001207]
[1737839970673,0.36822937,104990.0,104980.0,0.54199309]
[1737839976971,0.00742937,104990.0,104980.0,0.90279309]
[1737839978177,0.00921804,104990.0,104980.0,0.90279309]
[1737839980481,0.00778867,104990.0,104980.0,0.94447691]
[1737839980686,0.00778867,104990.0,104980.0,1.54767109]
[1737839982983,0.00778867,104990.0,104980.0,1.18687109]
[1737839983688,0.00778867,104990.0,104980.0,1.54767109]
[1737839983983,0.00836608,104990.0,104980.0,1.54767109]
[1737839984182,0.00836608,104990.0,104980.0,1.14518727]
[1737839984386,0.08549279,105000.0,104990.0,0.152418]
[1737839984583,0.08549279,105000.0,104990.0,0.20961187]
[1737839985678,0.09249279,105000.0,104990.0,0.21061187]
[1737839986473,0.09549279,105000.0,104990.0,0.21061187]
[1737839990581,0.09549279,105000.0,104990.0,0.98515346]
[1737839994090,0.24789579,105000.0,104990.0,0.98515346]
[1737839999884,0.24789579,105000.0,104990.0,0.72472374]
[1737840007593,0.24789579,105000.0,104990.0,0.98472701]
[1737840008402,0.24789579,105000.0,104990.0,1.51284262]
[1737840008403,0.09549279,105000.0,104990.0,1.51284262]
[1737840008792,0.09549279,105000.0,104990.0,1.5535372]
[1737840009096,0.09549279,105000.0,104990.0,1.59521993]
[1737840009697,0.09449279,105000.0,104990.0,1.59521993]
[1737840010187,0.09149279,105000.0,104990.0,1.59421993]
[1737840010997,0.004,105000.0,104990.0,1.59421993]
[1737840011301,0.25599146,105010.0,105000.0,0.152403]
[1737840011500,0.25599146,105010.0,105000.0,0.36269074]
[1737840012003,0.77059739,105020.0,105010.0,0.152389]
[1737840012203,0.77074008,105020.0,105010.0,0.20958287]
[1737840013296,0.77374008,105020.0,105010.0,0.20958287]
[1737840013916,0.77974008,105020.0,105010.0,0.21058287]
[1737840014906,0.77974008,105020.0,105010.0,0.20958287]
[1737840014907,0.77874008,105020.0,105010.0,0.20958287]
[1737840015597,0.77774008,105020.0,105010.0,0.20958287]
[1737840016900,0.77774008,105020.0,105010.0,0.21898964]
[1737840017512,0.77774008,105020.0,105010.0,0.39023821]
[1737840017513,0.6353613,105020.0,105010.0,0.39023821]
[1737840019199,0.4829843,105020.0,105010.0,0.39023821]
[1737840019600,0.4829843,105020.0,105010.0,0.44743208]
[1737840019799,0.4829843,105020.0,105010.0,0.39023821]
[1737840020501,0.4789843,105020.0,105010.0,0.39023821]
[1737840022007,0.4769843,105020.0,105010.0,0.39023821]
[1737840022700,0.4769843,105020.0,105010.0,0.61856963]
[1737840027010,0.51574562,105020.0,105010.0,0.61856963]
[1737840036219,0.51574562,105020.0,105010.0,0.66024559]
[1737840043417,0.6293583,105020.0,105010.0,1.03812189]
[1737840044425,0.6293583,105020.0,105010.0,0.99644593]
[1737840047318,0.6293583,105020.0,105010.0,1.03812165]
[1737840049124,0.4769843,105020.0,105010.0,1.03812165]
[1737840051021,0.4769843,105020.0,105010.0,0.80979023]
[1737840053516,0.4769843,105020.0,105010.0,0.76811451]
[1737840054827,0.1161843,105020.0,105010.0,0.76811451]
[1737840055420,0.1161843,105020.0,105010.0,0.85050081]
[1737840056024,0.1161843,105020.0,105010.0,0.85146577]
[1737840056527,0.1161843,105020.0,105010.0,0.80979023]
[1737840057124,0.1161843,105020.0,105010.0,0.85049707]
[1737840057324,0.1161843,105020.0,105010.0,0.80979023]
[1737840057930,0.00257162,105020.0,105010.0,0.85049391]
[1737840058934,0.00257162,105020.0,105010.0,0.80979023]
[1737840060920,0.00375868,105020.0,105010.0,0.80979023]
[1737840061921,0.00375868,105020.0,105010.0,0.76811451]
[1737840062529,0.00375868,105020.0,105010.0,1.10892551]
[1737840067037,0.00390194,105020.0,105010.0,1.10892551]
[1737840067339,0.00390194,105020.0,105010.0,0.76811451]
[1737840068338,0.00390194,105020.0,105010.0,0.80978782]
[1737840068549,0.0047952,105020.0,105010.0,0.76811451]
[1737840069842,0.00506504,105020.0,105010.0,0.76811451]
[1737840075137,0.00595822,105020.0,105010.0,0.76811451]
[1737840076339,0.0063714,105020.0,105010.0,0.76811451]
[1737840079747,0.0063714,105020.0,105010.0,0.80978759]
[1737840080251,0.0063714,105020.0,105010.0,0.76811451]
[1737840080741,0.0063714,105020.0,105010.0,0.80978775]
[1737840081849,0.0063714,105020.0,105010.0,0.76811451]
[1737840082552,0.0063714,105020.0,105010.0,0.80978798]
[1737840085454,0.0063714,105020.0,105010.0,0.76811451]
[1737840086248,0.0063714,105020.0,105010.0,1.10892551]
[1737840086447,0.0063714,105020.0,105010.0,1.15059865]
[1737840086955,0.0063714,105020.0,105010.0,1.10892551]
[1737840089261,0.0063714,105020.0,105010.0,1.15059877]
[1737840089659,0.0063714,105020.0,105010.0,1.10892551]
[1737840089860,0.0063714,105020.0,105010.0,1.15059858]
[1737840090159,0.11998408,105020.0,105010.0,1.15059858]
[1737840090354,0.11998408,105020.0,105010.0,1.10892551]
[1737840092148,0.11998408,105020.0,105010.0,1.15059877]
[1737840093764,0.11998408,105020.0,105010.0,1.10892551]
[1737840094257,0.0063714,105020.0,105010.0,1.10892551]
[1737840096772,0.0063714,105020.0,105010.0,1.15059857]
[1737840098169,0.0063714,105020.0,105010.0,0.80978757]
[1737840101079,0.0063714,105020.0,105010.0,0.85050928]
[1737840101271,0.00494247,105020.0,105010.0,0.85050928]
[1737840101575,0.00494247,105020.0,105010.0,0.80978757]
[1737840101972,0.00494247,105020.0,105010.0,1.19132021]
[1737840102271,0.00494247,105020.0,105010.0,1.14964715]
[1737840102475,0.00494247,105020.0,105010.0,1.10892551]
[1737840105968,0.00494247,105020.0,105010.0,0.76811451]
[1737840110489,0.11855515,105020.0,105010.0,0.76811451]
[1737840114681,0.00494247,105020.0,105010.0,0.80978878]
[1737840116689,0.00494247,105020.0,105010.0,0.76811451]
[1737840118889,0.11855515,105020.0,105010.0,1.10892551]
[1737840120286,0.68892302,105020.0,105010.0,0.89934264]
[1737840120587,0.84101689,105020.0,105010.0,0.88993587]
[1737840120789,0.78382302,105020.0,105010.0,0.88993587]
[1737840120988,0.72662915,105020.0,105010.0,1.09951874]
[1737840122279,0.72662915,105020.0,105010.0,0.75870774]
[1737840125688,0.69542915,105020.0,105010.0,0.60930619]
[1737840128595,0.63172915,105020.0,105010.0,0.60930619]
[1737840133706,0.71728708,105020.0,105010.0,0.60930619]
[1737840150409,0.56491308,105020.0,105010.0,0.60930619]
[1737840151318,0.56491308,105020.0,105010.0,0.4379962]
[1737840151319,0.47935515,105020.0,105010.0,0.4379962]
[1737840156115,0.47935515,105020.0,105010.0,0.98701139]
[1737840159720,0.56493605,105020.0,105010.0,0.98701139]
[1737840163627,0.45132337,105020.0,105010.0,0.98701139]
[1737840165830,0.45132337,105020.0,105010.0,1.02018337]
[1737840166432,0.45132337,105020.0,105010.0,0.98701139]
[1737840171529,0.45132337,105020.0,105010.0,0.4379962]
[1737840174735,0.45132337,105020.0,105010.0,0.47109393]
[1737840175331,0.56493605,105020.0,105010.0,0.75643487]
[1737840176038,0.71731005,105020.0,105010.0,0.75643487]
[1737840177136,0.35651005,105020.0,105010.0,0.75643487]
[1737840179138,0.35651005,105020.0,105010.0,0.78979889]
[1737840180735,0.71731005,105020.0,105010.0,0.73260502]
[1737840181133,0.81361005,105020.0,105010.0,0.73260502]
[1737840181839,0.81361005,105020.0,105010.0,0.78979889]
[1737840182930,0.81361005,105020.0,105010.0,0.73260502]
[1737840183835,0.87080392,105020.0,105010.0,0.69950729]
[1737840184036,0.87080392,105020.0,105010.0,0.58017248]
[1737840185236,0.87080392,105020.0,105010.0,0.54711829]
[1737840185237,0.92799779,105020.0,105010.0,0.54711829]
[1737840185435,1.07562379,105020.0,105000.0,0.340811]
[1737840185639,0.57038287,105010.0,105000.0,0.340811]
[1737840185845,0.58369149,105010.0,105000.0,0.340811]
[1737840186345,0.58749127,105010.0,105000.0,0.340811]
[1737840187442,0.58749127,105010.0,105000.0,0.341811]
[1737840187835,0.94468514,105010.0,105000.0,0.08452959]
[1737840188241,0.94468514,105010.0,105000.0,0.08652959]
[1737840189747,0.94468514,105010.0,105000.0,0.002]
[1737840189748,1.11506849,105010.0,105000.0,0.002]
[1737840190047,1.11506849,105010.0,104990.0,0.17150092]
[1737840190048,0.152403,105000.0,104990.0,0.17150092]
[1737840190234,0.72399074,105000.0,104990.0,0.17150092]
[1737840190429,0.72779052,105000.0,104990.0,0.17150092]
[1737840192144,0.72779052,105000.0,104990.0,0.17250092]
[1737840192341,0.72779052,105000.0,104990.0,0.17450092]
[1737840194541,0.72779052,105000.0,104990.0,0.00314269]
[1737840196548,0.73733305,105000.0,104990.0,0.00314269]
[1737840196844,0.80577305,105000.0,104990.0,0.00314269]
[1737840209049,0.152447,104970.0,104960.0,0.31457162]
[1737840209256,0.513247,104970.0,104960.0,0.31457162]
[1737840209452,0.51704678,104970.0,104960.0,0.31457162]
[1737840210153,0.51704678,104970.0,104960.0,0.32357162]
[1737840210154,0.51804678,104970.0,104960.0,0.32357162]
[1737840210559,0.51904678,104970.0,104960.0,0.33257162]
[1737840210854,0.15824678,104970.0,104960.0,0.33257162]
[1737840211250,0.51904678,104970.0,104960.0,0.33257162]
[1737840214560,0.51904678,104970.0,104960.0,0.36547066]
[1737840217559,0.51904678,104970.0,104960.0,0.33257162]
[1737840218859,0.71804269,104970.0,104960.0,0.50392985]
[1737840219362,0.77523656,104970.0,104960.0,0.50392985]
[1737840222259,0.6899526,104970.0,104960.0,0.7324075]
[1737840222464,0.63275873,104970.0,104960.0,0.7324075]
[1737840226162,0.77550094,104970.0,104960.0,0.7324075]
[1737840230368,0.66178899,104970.0,104960.0,0.7324075]
[1737840252285,0.14854199,104970.0,104960.0,0.78960137]
[1737840252678,0.14854199,104970.0,104960.0,1.15040137]
[1737840252876,0.17052604,104980.0,104960.0,1.03868339]
[1737840253080,0.17052604,104980.0,104970.0,0.20964087]
[1737840254186,0.17152604,104980.0,104970.0,0.20964087]
[1737840254371,0.17252604,104980.0,104970.0,0.20964087]
[1737840254773,0.17252604,104980.0,104970.0,0.21764087]
[1737840256083,0.17152604,104980.0,104970.0,0.63863474]
[1737840256680,0.20091145,104980.0,104970.0,0.67767062]
[1737840256877,0.20091145,104980.0,104970.0,1.03847062]
[1737840257075,0.20091145,104980.0,104970.0,1.07136743]
[1737840257485,0.20091145,104980.0,104970.0,1.01417356]
[1737840259689,0.20091145,104980.0,104970.0,1.07136743]
[1737840260691,0.08675787,104980.0,104970.0,0.9000092]
[1737840261183,0.08675787,104980.0,104970.0,0.86711239]
[1737840262389,0.08675787,104980.0,104970.0,0.84288181]
[1737840263895,0.00114269,104980.0,104970.0,0.84288181]
[1737840266486,0.00114269,104980.0,104970.0,0.80991852]
[1737840267786,0.19976876,104990.0,104970.0,0.71466539]
[1737840267987,0.19976876,104990.0,104980.0,0.36211974]
[1737840268986,0.19976876,104990.0,104980.0,0.72291974]
[1737840269896,0.19976876,104990.0,104980.0,0.72491974]
[1737840270199,0.19976876,104990.0,104980.0,0.75787475]
[1737840270996,0.19976876,104990.0,104980.0,0.76387475]
[1737840271496,0.19976876,104990.0,104980.0,0.82106862]
[1737840271691,0.19976876,104990.0,104980.0,0.76387475]
[1737840272288,0.00014269,105000.0,104980.0,0.66863662]
[1737840272492,0.00014269,105000.0,104990.0,0.62760574]
[1737840272702,0.00014269,105000.0,104990.0,0.66056075]
[1737840273197,0.11416888,105000.0,104990.0,0.66056075]
[1737840274502,0.11416888,105000.0,104990.0,0.66256075]
[1737840275097,0.11416888,105000.0,104990.0,0.63060574]
[1737840275298,0.11416888,105000.0,104990.0,0.66357632]
[1737840277497,0.00014269,105000.0,104990.0,1.06318207]
[1737840279001,0.544179,105020.0,104990.0,0.91076407]
[1737840279193,0.544179,105020.0,105010.0,0.20958287]
[1737840279590,0.513179,105020.0,105010.0,0.20958287]
[1737840279895,0.3608,105020.0,105010.0,0.20958287]
[1737840281302,0.3668,105020.0,105010.0,0.20958287]
[1737840283900,0.006,105020.0,105010.0,0.57038287]
[1737840284605,0.006,105020.0,105010.0,0.57981806]
[1737840290513,0.006,105020.0,105010.0,0.21901806]